bitfinex/quotes_BTCUSD_20230110
["timestamp","ask_amount","ask_price","bid_price","bid_amount"]
[1673314185144,1.58605593,17205.0,17204.0,0.01696379]
[1673314185396,2.03918965,17205.0,17204.0,0.01696379]
[1673314186185,1.75976265,17205.0,17204.0,0.01696379]
[1673314187202,1.9334494,17205.0,17204.0,0.01696379]
[1673314187453,1.75986913,17205.0,17204.0,0.01696379]
[1673314187963,2.03929613,17205.0,17204.0,0.01696379]
[1673314188483,1.75986913,17205.0,17204.0,0.01696379]
[1673314188742,2.47349094,17205.0,17204.0,0.01696379]
[1673314188988,2.19406394,17205.0,17204.0,0.01696379]
[1673314189243,3.53583191,17205.0,17204.0,0.01696379]
[1673314189500,3.25640491,17205.0,17204.0,0.01696379]
[1673314189758,3.18824201,17205.0,17204.0,0.01696379]
[1673314190276,2.90881501,17205.0,17204.0,0.01696379]
[1673314190528,2.60701601,17205.0,17204.0,0.01696379]
[1673314191305,2.47459813,17205.0,17204.0,0.01696379]
[1673314191555,3.7699563,17205.0,17204.0,0.01696379]
[1673314191865,3.4905293,17205.0,17204.0,0.01696379]
[1673314192079,3.91647713,17205.0,17204.0,0.01696379]
[1673314193638,4.4375149,17205.0,17204.0,0.01696379]
[1673314193903,4.1580879,17205.0,17204.0,0.01696379]
[1673314194168,3.91647713,17205.0,17204.0,0.01696379]
[1673314194459,3.63705013,17205.0,17204.0,0.01696379]
[1673314194680,3.91647713,17205.0,17204.0,0.01696379]
[1673314195191,4.4375149,17205.0,17204.0,0.01696379]
[1673314195698,4.09049228,17205.0,17204.0,0.01696379]
[1673314195950,4.43763171,17205.0,17204.0,0.01696379]
[1673314196953,4.15820471,17205.0,17204.0,0.01696379]
[1673314197203,4.43763171,17205.0,17204.0,0.01696379]
[1673314197973,4.15820471,17205.0,17204.0,0.01696379]
[1673314198225,4.43763171,17205.0,17204.0,0.01696379]
[1673314200738,4.43763171,17205.0,17204.0,0.01685421]
[1673314200989,4.43763171,17205.0,17204.0,0.00216275]
[1673314201978,4.43876913,17205.0,17204.0,0.00216275]
[1673314204020,4.43872528,17205.0,17204.0,0.00216275]
[1673314204278,4.48048995,17205.0,17204.0,0.00216275]
[1673314204590,4.4387357,17205.0,17204.0,0.00216275]
[1673314204802,3.91659394,17205.0,17204.0,0.00216275]
[1673314205067,4.43873376,17205.0,17204.0,0.00216275]
[1673314205582,3.85750776,17205.0,17204.0,0.00216275]
[1673314211218,3.85750776,17205.0,17202.0,0.55504127]
[1673314211517,3.85750776,17205.0,17201.0,0.01677367]
[1673314211518,0.1688,17203.0,17201.0,0.01677367]
[1673314211750,1.2958512,17202.0,17201.0,0.54755154]
[1673314212006,1.75891004,17202.0,17201.0,0.01677367]
[1673314212330,1.75891491,17202.0,17201.0,0.01677367]
[1673314212791,0.60899834,17202.0,17201.0,0.61677367]
[1673314213043,0.90899834,17202.0,17201.0,0.61677367]
[1673314213826,0.91499834,17202.0,17201.0,0.63177367]
[1673314214083,0.90899834,17202.0,17201.0,0.61677367]
[1673314214345,1.04399834,17202.0,17201.0,0.61877367]
[1673314214861,1.21809741,17202.0,17201.0,0.61877367]
[1673314215097,1.61088009,17202.0,17201.0,0.60877367]
[1673314217639,1.61088009,17202.0,17201.0,0.00877367]
[1673314218969,1.95885379,17202.0,17201.0,0.00877367]
[1673314220251,2.3067353,17202.0,17201.0,0.00877367]
[1673314221533,1.95885379,17202.0,17201.0,0.00877367]
[1673314222068,2.30673001,17202.0,17201.0,0.00877367]
[1673314222830,0.8346073,17201.0,17200.0,0.72239251]
[1673314223146,1.26950493,17201.0,17200.0,0.72239251]
[1673314223661,1.26950493,17201.0,17200.0,1.30378751]
[1673314223938,1.40050493,17201.0,17200.0,2.24899951]
[1673314224180,1.13956635,17201.0,17200.0,2.24899951]
[1673314224692,1.13956635,17201.0,17200.0,1.88718251]
[1673314225726,1.13956635,17201.0,17200.0,2.24899951]
[1673314225727,0.30495905,17201.0,17200.0,2.24899951]
[1673314225985,0.131,17201.0,17200.0,2.24899951]
[1673314226232,0.131,17201.0,17200.0,3.24899951]
[1673314226485,0.30495905,17201.0,17200.0,3.24899951]
[1673314226740,0.131,17201.0,17200.0,3.24899951]
[1673314226997,0.30495905,17201.0,17200.0,3.24899951]
[1673314227259,0.131,17201.0,17200.0,3.24899951]
[1673314228552,0.131,17201.0,17200.0,3.83039451]
[1673314229594,0.131,17201.0,17200.0,4.52688062]
[1673314229855,0.131,17201.0,17200.0,4.70058152]
[1673314230118,0.131,17201.0,17200.0,4.91725735]
[1673314230389,0.131,17201.0,17200.0,6.28723395]
[1673314230915,0.131,17201.0,17200.0,5.60780913]
[1673314231146,0.131,17201.0,17200.0,5.60858003]
[1673314231400,0.131,17201.0,17200.0,6.29412482]
[1673314231918,1.08314638,17204.0,17201.0,0.3]
[1673314232166,1.08314638,17204.0,17203.0,0.7677]
[1673314232415,1.08314638,17204.0,17203.0,2.292103]
[1673314232678,0.43489763,17204.0,17203.0,2.292103]
[1673314232936,0.17395905,17204.0,17203.0,2.873396]
[1673314233467,0.30995905,17204.0,17203.0,2.877396]
[1673314234726,0.136,17204.0,17203.0,2.877396]
[1673314239531,0.136,17204.0,17203.0,3.54562604]
[1673314242773,0.1359086,17204.0,17203.0,3.54562604]
[1673314247822,0.1359086,17204.0,17203.0,3.54658424]
[1673314248066,0.1359086,17204.0,17203.0,3.54562604]
[1673314252309,0.1359086,17204.0,17203.0,2.36433304]
[1673314252568,0.1359086,17204.0,17203.0,1.78304004]
[1673314252814,0.1359086,17204.0,17203.0,1.42122304]
[1673314253035,0.1359086,17204.0,17203.0,0.83993004]
[1673314255928,0.1359086,17204.0,17203.0,1.20174704]
[1673314256182,0.1359086,17204.0,17203.0,1.78304004]
[1673314257190,0.1359086,17204.0,17203.0,1.42122304]
[1673314257701,0.1359086,17204.0,17203.0,2.36433304]
[1673314258997,0.1359086,17204.0,17203.0,2.00251604]
[1673314260246,0.1359086,17204.0,17203.0,1.334286]
[1673314260508,0.30986765,17204.0,17203.0,0.1717]
[1673314260768,1.17738339,17204.0,17203.0,0.1717]
[1673314261555,1.17738339,17204.0,17203.0,0.004]
[1673314262063,1.43832197,17204.0,17203.0,0.004]
[1673314262591,1.86634947,17204.0,17203.0,0.004]
[1673314263848,2.04026664,17204.0,17203.0,0.004]
[1673314266703,3.18986209,17204.0,17203.0,0.00388281]
[1673314267732,3.77112209,17204.0,17203.0,0.00388281]
[1673314267995,3.70267287,17204.0,17203.0,0.00388281]
[1673314268248,3.42324587,17204.0,17203.0,0.00388281]
[1673314268475,3.12141287,17204.0,17203.0,0.00388281]
[1673314268783,3.19006037,17204.0,17203.0,0.00388281]
[1673314269091,3.46943989,17204.0,17203.0,0.00388281]
[1673314269333,2.84198587,17204.0,17203.0,0.00388281]
[1673314269596,3.12141287,17204.0,17203.0,0.00388281]
[1673314269867,3.26757567,17204.0,17203.0,0.00388281]
[1673314270136,2.98814867,17204.0,17203.0,0.00388281]
[1673314270405,3.55769975,17204.0,17203.0,0.00388281]
[1673314270659,4.06965477,17204.0,17203.0,0.00388281]
[1673314270941,3.85769975,17204.0,17203.0,0.00047935]
[1673314271199,4.07988877,17204.0,17203.0,0.00047935]
[1673314271483,3.55774895,17204.0,17203.0,0.00047935]
[1673314271791,4.07988877,17204.0,17203.0,0.00047935]
[1673314272334,4.20635644,17204.0,17203.0,0.00047935]
[1673314272586,4.78761644,17204.0,17203.0,0.00047935]
[1673314273132,4.31131816,17204.0,17203.0,0.00047935]
[1673314273640,4.83345798,17204.0,17203.0,0.00047935]
[1673314274702,4.31131816,17204.0,17203.0,0.00047935]
[1673314275713,4.30615975,17204.0,17203.0,0.00047935]
[1673314275962,5.14763105,17204.0,17203.0,0.00047935]
[1673314276211,4.63980429,17204.0,17203.0,5.053e-05]
[1673314276464,4.08401993,17204.0,17203.0,5.053e-05]
[1673314277260,4.60527774,17204.0,17203.0,5.053e-05]
[1673314277774,4.30527774,17204.0,17203.0,5.053e-05]
[1673314278084,4.60527774,17204.0,17203.0,5.053e-05]
[1673314279302,4.08401993,17204.0,17203.0,5.053e-05]
[1673314279563,4.60527774,17204.0,17203.0,5.053e-05]
[1673314279813,3.78401993,17204.0,17203.0,5.053e-05]
[1673314280068,4.30527774,17204.0,17203.0,5.053e-05]
[1673314280330,4.60527774,17204.0,17203.0,5.053e-05]
[1673314281861,4.9449273,17204.0,17203.0,5.053e-05]
[1673314282621,4.60527774,17204.0,17203.0,5.053e-05]
[1673314287943,4.43737774,17204.0,17203.0,5.053e-05]
[1673314290733,9.47e-06,17201.0,17200.0,0.01666859]
[1673314290975,1.01567162,17201.0,17200.0,0.01666859]
[1673314291239,1.31567162,17201.0,17200.0,0.01666859]
[1673314291990,1.31567162,17201.0,17200.0,0.61147014]
[1673314292235,1.31967162,17201.0,17200.0,0.62347014]
[1673314294471,1.66711255,17201.0,17200.0,0.62347014]
[1673314294733,2.67158059,17201.0,17200.0,0.02866859]
[1673314294999,3.58206771,17201.0,17200.0,0.02866859]
[1673314295255,4.44446973,17201.0,17200.0,0.02866859]
[1673314295511,4.51255269,17201.0,17200.0,0.02866859]
[1673314295763,4.78797969,17201.0,17200.0,0.01666859]
[1673314296504,4.50855269,17201.0,17200.0,0.01666859]
[1673314296755,4.78797969,17201.0,17200.0,0.01666859]
[1673314297003,4.44046973,17201.0,17200.0,0.01666859]
[1673314297804,4.16604273,17201.0,17200.0,0.03166859]
[1673314298061,4.44046973,17201.0,17200.0,0.01666859]
[1673314298576,4.40766973,17201.0,17200.0,0.01866859]
[1673314298819,4.12824273,17201.0,17200.0,0.01866859]
[1673314299087,4.40766973,17201.0,17200.0,0.01866859]
[1673314299636,3.97329521,17201.0,17200.0,0.01866859]
[1673314299847,3.69386821,17201.0,17200.0,0.01866859]
[1673314300095,3.97329521,17201.0,17200.0,0.01866859]
[1673314301618,4.17411132,17201.0,17200.0,0.01866859]
[1673314301871,3.89468432,17201.0,17200.0,0.01866859]
[1673314302117,4.17411132,17201.0,17200.0,0.01866859]
[1673314302634,3.89468432,17201.0,17200.0,0.01866859]
[1673314303390,3.89477023,17201.0,17200.0,0.01866859]
[1673314303634,3.82647299,17201.0,17200.0,0.01866859]
[1673314303914,3.54704599,17201.0,17200.0,0.01866859]
[1673314304158,3.89477304,17201.0,17200.0,0.01866859]
[1673314304369,3.54704599,17201.0,17200.0,0.01866859]
[1673314305160,2.18297291,17201.0,17200.0,0.01866859]
[1673314305424,1.74843413,17201.0,17200.0,0.01866859]
[1673314305936,2.31307064,17201.0,17200.0,0.01866859]
[1673314307207,2.39325253,17201.0,17200.0,0.01866859]
[1673314307476,2.97461353,17201.0,17200.0,0.01866859]
[1673314308006,2.81950175,17201.0,17200.0,0.01866859]
[1673314308271,2.54007475,17201.0,17200.0,0.01866859]
[1673314308536,2.53999724,17201.0,17200.0,0.01866859]
[1673314309021,2.97492581,17201.0,17200.0,0.01866859]
[1673314309272,3.12135824,17201.0,17200.0,0.01866859]
[1673314312342,3.40078524,17201.0,17200.0,0.01866859]
[1673314312845,3.92204305,17201.0,17200.0,0.01866859]
[1673314313361,3.64261605,17201.0,17200.0,0.01866859]
[1673314313615,3.92204305,17201.0,17200.0,0.01866859]
[1673314313860,3.79971064,17201.0,17200.0,0.01866859]
[1673314314113,4.40290138,17201.0,17200.0,0.01866859]
[1673314315681,3.79971064,17201.0,17200.0,0.01866859]
[1673314316445,3.79971064,17201.0,17200.0,0.00110415]
[1673314316701,3.27845283,17201.0,17200.0,0.00110415]
[1673314317214,3.44645283,17201.0,17200.0,0.00110415]
[1673314317973,3.74645283,17201.0,17200.0,0.00110415]
[1673314318492,4.03326097,17201.0,17200.0,0.00110415]
[1673314319265,3.74645283,17201.0,17200.0,0.00110415]
[1673314319536,4.33326097,17201.0,17200.0,0.00110415]
[1673314320301,3.74645283,17201.0,17200.0,0.00110415]
[1673314320804,4.33326097,17201.0,17200.0,0.00110415]
[1673314321818,4.33326097,17201.0,17200.0,4.633e-05]
[1673314322070,4.89832378,17201.0,17200.0,4.633e-05]
[1673314322324,5.45865919,17201.0,17200.0,4.633e-05]
[1673314323918,5.17995915,17201.0,17200.0,4.633e-05]
[1673314324226,5.76720193,17201.0,17200.0,4.633e-05]
[1673314324738,5.59019345,17201.0,17200.0,4.633e-05]
[1673314325005,6.22721004,17201.0,17200.0,4.633e-05]
[1673314325290,6.22721789,17201.0,17200.0,4.633e-05]
[1673314325551,5.00314585,17201.0,17200.0,4.633e-05]
[1673314325807,0.2,17200.0,17199.0,0.01827528]
[1673314326064,3.98786144,17200.0,17199.0,0.01827528]
[1673314326316,4.26728844,17200.0,17199.0,0.01827528]
[1673314327377,4.40328844,17200.0,17199.0,0.02027528]
[1673314327627,4.887617,17200.0,17199.0,0.02027528]
[1673314327929,4.90705392,17200.0,17199.0,0.02027528]
[1673314328189,4.31998835,17200.0,17199.0,0.02027528]
[1673314328439,4.34671851,17200.0,17199.0,0.02027528]
[1673314328737,3.75965294,17200.0,17199.0,0.02027528]
[1673314329792,4.89556,17200.0,17199.0,0.02027528]
[1673314330071,5.62469541,17200.0,17199.0,0.02027528]
[1673314330968,5.07585392,17200.0,17199.0,0.02027528]
[1673314331188,4.51551851,17200.0,17199.0,0.02027528]
[1673314331845,4.51551851,17200.0,17199.0,0.00090488]
[1673314335531,4.51665652,17200.0,17199.0,0.00090488]
[1673314335883,4.48878835,17200.0,17199.0,0.00090488]
[1673314336055,4.26766366,17200.0,17199.0,0.00090488]
[1673314336306,4.95841311,17200.0,17198.0,0.00133632]
[1673314336554,1.89140534,17199.0,17198.0,0.00133632]
[1673314336815,3.91511934,17199.0,17198.0,0.00133632]
[1673314337599,3.74641934,17199.0,17198.0,0.00133632]
[1673314338108,2.65951819,17199.0,17198.0,0.00133632]
[1673314338379,2.79451819,17199.0,17198.0,0.00333632]
[1673314338625,2.80782626,17199.0,17198.0,0.00333632]
[1673314339150,2.22639726,17199.0,17198.0,0.00333632]
[1673314339409,1.82210582,17199.0,17198.0,0.00333632]
[1673314339924,1.64832246,17199.0,17198.0,0.69875965]
[1673314340425,1.47453711,17199.0,17198.0,0.69875965]
[1673314344006,1.64832246,17199.0,17198.0,0.00333632]
[1673314344253,1.82203071,17199.0,17198.0,0.00333632]
[1673314344499,1.64832246,17199.0,17198.0,0.00333632]
[1673314346455,0.59556651,17199.0,17198.0,0.58479832]
[1673314346704,0.30873635,17199.0,17198.0,1.85431336]
[1673314346949,0.30873635,17199.0,17198.0,1.27285136]
[1673314349447,0.30873635,17199.0,17198.0,1.85431336]
[1673314349942,0.30873635,17199.0,17198.0,1.16626032]
[1673314350196,0.30873635,17199.0,17198.0,0.58479832]
[1673314350197,0.56930286,17199.0,17198.0,0.58479832]
[1673314350449,1.18042046,17199.0,17198.0,0.00333632]
[1673314350695,1.52791144,17199.0,17198.0,0.00333632]
[1673314350939,1.35417509,17199.0,17198.0,0.00333632]
[1673314351454,1.78852496,17199.0,17198.0,0.00333632]
[1673314351696,1.35423064,17199.0,17198.0,0.00333632]
[1673314352943,1.52798014,17199.0,17198.0,0.00333632]
[1673314353193,1.35423064,17199.0,17198.0,0.00333632]
[1673314354458,2.10938745,17199.0,17198.0,0.00333632]
[1673314355695,1.93565733,17199.0,17198.0,0.00333632]
[1673314355948,1.35422833,17199.0,17198.0,0.00333632]
[1673314356194,1.18049109,17199.0,17198.0,0.00333632]
[1673314357173,1.35422833,17199.0,17198.0,0.00333632]
[1673314357929,1.35422833,17199.0,17198.0,0.17213632]
[1673314358667,1.52795845,17199.0,17198.0,0.17213632]
[1673314359137,1.78856685,17199.0,17198.0,0.17213632]
[1673314359384,2.10938745,17199.0,17198.0,0.17213632]
[1673314360635,2.51077553,17199.0,17198.0,0.17213632]
[1673314361123,2.51077553,17199.0,17198.0,0.17204805]
[1673314361409,2.10938745,17199.0,17198.0,0.17204805]
[1673314361656,2.37001829,17199.0,17198.0,0.17204805]
[1673314361913,2.10938745,17199.0,17198.0,0.17204805]
[1673314362413,2.5107846,17199.0,17198.0,0.17204805]
[1673314362669,2.51076873,17199.0,17198.0,0.17204805]
[1673314363422,2.10938745,17199.0,17198.0,0.17204805]
[1673314363669,1.93565665,17199.0,17198.0,0.17204805]
[1673314363918,1.35422765,17199.0,17198.0,0.17204805]
[1673314364922,1.92969127,17199.0,17198.0,0.17204805]
[1673314365144,1.52795845,17199.0,17198.0,0.17204805]
[1673314366623,2.51111875,17199.0,17198.0,0.17204805]
[1673314366866,2.93757575,17199.0,17198.0,0.17204805]
[1673314367622,2.51111875,17199.0,17198.0,0.17204805]
[1673314367871,1.3542511,17199.0,17198.0,0.00324805]
[1673314368124,1.78860097,17199.0,17198.0,0.00324805]
[1673314368379,1.3542511,17199.0,17198.0,0.00324805]
[1673314368634,1.92866993,17199.0,17198.0,0.00324805]
[1673314371260,1.9285911,17199.0,17198.0,0.00324805]
[1673314372571,1.58110012,17199.0,17198.0,0.00324805]
[1673314373561,1.92884863,17199.0,17198.0,0.00324805]
[1673314374547,1.58110012,17199.0,17198.0,0.00324805]
[1673314375857,1.14675025,17199.0,17198.0,0.00324805]
[1673314376127,1.34675025,17199.0,17198.0,0.00324805]
[1673314379374,1.34675025,17199.0,17198.0,0.01112805]
[1673314380916,2.8759072,17199.0,17198.0,0.01112805]
[1673314381175,3.1553342,17199.0,17198.0,0.01112805]
[1673314381663,2.8759072,17199.0,17198.0,0.01112805]
[1673314381902,3.1553342,17199.0,17198.0,0.01112805]
[1673314382146,2.8759072,17199.0,17198.0,0.01112805]
[1673314382423,2.5442166,17199.0,17198.0,0.01112805]
[1673314382675,3.84249466,17199.0,17198.0,0.01112805]
[1673314382927,3.84249466,17199.0,17198.0,0.0012208]
[1673314382928,3.04179671,17199.0,17198.0,0.0012208]
[1673314383183,3.32122371,17199.0,17198.0,0.0012208]
[1673314383436,3.04179671,17199.0,17198.0,0.0012208]
[1673314383688,3.84303752,17199.0,17198.0,0.0012208]
[1673314385013,3.56361052,17199.0,17198.0,0.0012208]
[1673314385283,3.84303752,17199.0,17198.0,0.0012208]
[1673314386563,4.42446652,17199.0,17198.0,0.0012208]
[1673314389873,4.14503952,17199.0,17198.0,0.0012208]
[1673314390138,4.42446652,17199.0,17198.0,0.0012208]
[1673314390401,3.99800952,17199.0,17198.0,0.0012208]
[1673314390661,4.42446652,17199.0,17198.0,0.0012208]
[1673314391181,4.14503952,17199.0,17198.0,0.0012208]
[1673314391433,3.90265271,17199.0,17198.0,0.0012208]
[1673314391751,3.18580365,17199.0,17198.0,0.0012208]
[1673314391965,3.89440309,17199.0,17198.0,0.0012208]
[1673314393492,3.18580365,17199.0,17198.0,0.0012208]
[1673314393746,3.88147435,17199.0,17198.0,0.0012208]
[1673314394776,4.40294137,17199.0,17198.0,0.0012208]
[1673314395296,3.70727067,17199.0,17198.0,0.0012208]
[1673314395578,4.25309293,17199.0,17198.0,0.0012208]
[1673314396307,4.24309293,17199.0,17198.0,0.0012208]
[1673314397070,4.28501009,17199.0,17198.0,0.0012208]
[1673314397343,3.72162591,17199.0,17198.0,0.0012208]
[1673314397849,4.24306899,17199.0,17198.0,0.0012208]
[1673314400675,3.73918783,17199.0,17198.0,0.0012208]
[1673314400927,3.86143847,17199.0,17198.0,0.0012208]
[1673314401942,4.3828164,17199.0,17198.0,0.0012208]
[1673314402465,3.69718158,17199.0,17198.0,0.0012208]
[1673314402717,3.86797758,17199.0,17198.0,0.0012208]
[1673314402982,4.38933012,17199.0,17198.0,0.00014079]
[1673314403295,3.69715619,17199.0,17198.0,0.00014079]
[1673314403595,4.21437833,17199.0,17198.0,0.00014079]
[1673314404636,3.69715619,17199.0,17198.0,0.00014079]
[1673314404901,3.17580365,17199.0,17198.0,0.00014079]
[1673314406235,3.47580365,17199.0,17198.0,0.00014079]
[1673314407307,4.06286922,17199.0,17198.0,0.00014079]
[1673314408336,4.06286922,17199.0,17198.0,1.133e-05]
[1673314408587,4.63910103,17199.0,17198.0,1.133e-05]
[1673314408832,4.05203546,17199.0,17198.0,1.133e-05]
[1673314409095,4.31541964,17199.0,17198.0,1.133e-05]
[1673314409344,3.75203546,17199.0,17198.0,1.133e-05]
[1673314409860,4.05203546,17199.0,17198.0,1.133e-05]
[1673314410133,4.61541964,17199.0,17198.0,1.133e-05]
[1673314410370,4.31541964,17199.0,17198.0,1.133e-05]
[1673314410621,3.75203546,17199.0,17198.0,1.133e-05]
[1673314413161,4.33910103,17199.0,17198.0,1.133e-05]
[1673314413436,3.75203546,17199.0,17198.0,1.133e-05]
[1673314413962,4.33910103,17199.0,17198.0,1.133e-05]
[1673314415552,3.75203546,17199.0,17198.0,1.133e-05]
[1673314416632,4.33910103,17199.0,17198.0,1.133e-05]
[1673314417972,4.50740103,17199.0,17198.0,1.133e-05]
[1673314419185,0.2,17198.0,17197.0,0.019496]
[1673314419452,3.02331312,17198.0,17197.0,0.019496]
[1673314419715,4.12208723,17198.0,17197.0,0.019496]
[1673314419973,3.55870305,17198.0,17197.0,0.019496]
[1673314420474,3.69370305,17198.0,17197.0,0.022496]
[1673314421216,3.55870305,17198.0,17197.0,0.019496]
[1673314421497,3.69370305,17198.0,17197.0,0.022496]
[1673314422512,3.55870305,17198.0,17197.0,0.019496]
[1673314422813,3.69470305,17198.0,17197.0,0.00534607]
[1673314425039,4.25808723,17198.0,17197.0,0.00534607]
[1673314425327,3.69470305,17198.0,17197.0,0.00534607]
[1673314425565,1.85356341,17198.0,17197.0,0.24302396]
[1673314425800,1.27210141,17198.0,17197.0,0.00534607]
[1673314428810,1.70689269,17198.0,17197.0,0.00534607]
[1673314434063,0.94449103,17198.0,17197.0,0.67202727]
[1673314434311,0.74449103,17198.0,17197.0,0.67202727]
[1673314435584,1.11850044,17198.0,17197.0,0.67202727]
[1673314435821,1.51304855,17198.0,17197.0,0.67202727]
[1673314437108,0.94440142,17198.0,17197.0,0.67202727]
[1673314437927,0.94440142,17198.0,17197.0,0.84082727]
[1673314440866,0.74440142,17198.0,17197.0,0.84082727]
[1673314441121,0.57043749,17198.0,17197.0,0.84082727]
[1673314441375,0.30974523,17198.0,17197.0,0.84082727]
[1673314442680,0.30974523,17198.0,17197.0,1.42232327]
[1673314442990,0.30974523,17198.0,17197.0,2.00381927]
[1673314443241,0.136,17198.0,17197.0,2.36563627]
[1673314444295,0.136,17198.0,17197.0,2.94713227]
[1673314448459,0.136,17198.0,17197.0,2.11483227]
[1673314450441,0.136,17198.0,17197.0,2.12333227]
[1673314452672,0.136,17198.0,17197.0,2.09833227]
[1673314456750,0.99851376,17198.0,17197.0,0.1762]
[1673314458058,2.81231768,17198.0,17195.0,0.72397249]
[1673314458371,0.82418519,17197.0,17195.0,0.72397249]
[1673314458814,0.82418519,17197.0,17196.0,0.361817]
[1673314459065,0.99793042,17197.0,17196.0,0.361817]
[1673314459315,0.99793042,17197.0,17195.0,0.18963647]
[1673314459601,2.81218213,17197.0,17195.0,0.02083647]
[1673314459852,0.17374523,17196.0,17195.0,0.02083647]
[1673314460123,2.42163968,17197.0,17196.0,0.0085]
[1673314460389,2.98654391,17197.0,17196.0,0.0085]
[1673314460646,3.12254391,17197.0,17196.0,0.0085]
[1673314460919,2.98654391,17197.0,17196.0,0.0085]
[1673314461177,2.23099768,17197.0,17196.0,0.0085]
[1673314461664,2.36699768,17197.0,17196.0,0.0085]
[1673314463537,2.98651891,17197.0,17196.0,0.0085]
[1673314463751,3.12251891,17197.0,17196.0,0.0085]
[1673314464000,2.98651891,17197.0,17196.0,0.0085]
[1673314464258,2.81257928,17197.0,17196.0,0.0085]
[1673314464509,3.12251891,17197.0,17196.0,0.0085]
[1673314465043,3.25951891,17197.0,17196.0,0.0085]
[1673314465290,2.98651891,17197.0,17196.0,0.0085]
[1673314465550,3.12351891,17197.0,17196.0,0.0085]
[1673314466309,2.98651891,17197.0,17196.0,0.0085]
[1673314466600,3.12251891,17197.0,17196.0,0.0085]
[1673314466867,3.40194591,17197.0,17196.0,0.0085]
[1673314467631,3.29623842,17197.0,17196.0,0.0085]
[1673314467869,3.29622721,17197.0,17196.0,0.0085]
[1673314468125,3.70194591,17197.0,17196.0,0.0085]
[1673314468898,4.13673719,17197.0,17196.0,0.0085]
[1673314469392,3.87604493,17197.0,17196.0,0.0085]
[1673314469652,3.59661793,17197.0,17196.0,0.0085]
[1673314469954,4.13656521,17197.0,17196.0,0.0085]
[1673314470172,2.84085093,17197.0,17196.0,0.0085]
[1673314470424,2.66682838,17197.0,17196.0,0.0085]
[1673314472991,2.66682838,17197.0,17196.0,0.00840855]
[1673314474649,0.39159145,17196.0,17195.0,0.02083647]
[1673314475099,0.98050812,17196.0,17195.0,0.02083647]
[1673314475681,1.15419473,17196.0,17195.0,0.02083647]
[1673314475949,0.98050812,17196.0,17195.0,0.02083647]
[1673314476219,1.29019473,17196.0,17195.0,0.02083647]
[1673314476682,1.11650812,17196.0,17195.0,0.02083647]
[1673314476940,1.11650812,17196.0,17195.0,0.02933647]
[1673314479066,1.11650812,17196.0,17195.0,0.02933601]
[1673314481737,0.37066399,17195.0,17194.0,2.42895744]
[1673314482212,0.17066399,17195.0,17194.0,2.79077444]
[1673314483277,0.17066399,17195.0,17194.0,2.20919644]
[1673314483278,0.30666399,17195.0,17194.0,2.20919644]
[1673314483772,0.30666399,17195.0,17194.0,2.21769644]
[1673314485853,0.30666399,17195.0,17194.0,1.85587944]
[1673314486101,0.30666399,17195.0,17194.0,2.21769644]
[1673314487390,0.30666399,17195.0,17194.0,1.85587944]
[1673314488160,0.30666399,17195.0,17194.0,2.21769644]
[1673314489998,0.30666399,17195.0,17194.0,1.85587944]
[1673314490236,0.30666399,17195.0,17194.0,2.21769644]
[1673314492899,0.30666399,17195.0,17194.0,2.79929444]
[1673314493695,0.30666399,17195.0,17194.0,2.97337999]
[1673314495811,0.30666399,17195.0,17194.0,4.04876194]
[1673314496122,0.30666399,17195.0,17194.0,3.23469793]
[1673314496368,0.30666399,17195.0,17194.0,4.04876125]
[1673314497138,1e-08,17195.0,17194.0,4.22197417]
[1673314497433,1e-08,17195.0,17194.0,5.22197417]
[1673314499253,1e-08,17195.0,17194.0,5.65045369]
[1673314499508,1e-08,17195.0,17194.0,5.88813158]
[1673314499783,1e-08,17195.0,17194.0,7.11395888]
[1673314500093,1e-08,17195.0,17194.0,6.76666041]
[1673314500804,0.19159145,17196.0,17195.0,0.2]
[1673314501070,0.19159145,17196.0,17195.0,4.81071833]
[1673314501321,0.19159145,17196.0,17195.0,4.86595359]
[1673314501578,0.19159145,17196.0,17195.0,5.12740992]
[1673314502104,0.19159145,17196.0,17195.0,4.68614626]
[1673314502687,0.23859145,17196.0,17195.0,4.69514626]
[1673314502875,0.23859145,17196.0,17195.0,5.38638834]
[1673314503127,0.23859145,17196.0,17195.0,5.38734698]
[1673314503647,0.23859145,17196.0,17195.0,4.95886746]
[1673314503904,0.23859145,17196.0,17195.0,5.30744991]
[1673314504430,0.23859145,17196.0,17195.0,5.13300172]
[1673314505721,0.23859145,17196.0,17195.0,5.07776646]
[1673314506515,0.23859145,17196.0,17195.0,4.90334328]
[1673314506771,0.23859145,17196.0,17195.0,5.30716099]
[1673314507305,0.23859145,17196.0,17195.0,5.13300172]
[1673314508335,0.23859145,17196.0,17195.0,4.95853658]
[1673314509091,0.23859145,17196.0,17195.0,4.78973658]
[1673314509861,0.23859145,17196.0,17195.0,4.75195933]
[1673314510118,0.23859145,17196.0,17195.0,3.97567326]
[1673314510365,0.23859145,17196.0,17195.0,3.41436229]
[1673314510640,0.23859145,17196.0,17195.0,3.21436229]
[1673314511906,0.23859145,17196.0,17195.0,3.04024498]
[1673314512158,0.23859145,17196.0,17195.0,3.21436229]
[1673314512411,0.23859145,17196.0,17195.0,3.04024498]
[1673314512919,0.23859145,17196.0,17195.0,3.21436229]
[1673314519571,0.23847758,17196.0,17195.0,3.21436229]
[1673314519812,0.23847758,17196.0,17195.0,3.51436229]
[1673314520830,0.23847758,17196.0,17195.0,3.21436229]
[1673314521079,0.23847758,17196.0,17195.0,3.51436229]
[1673314522090,0.23847758,17196.0,17195.0,3.21436229]
[1673314524087,0.23847758,17196.0,17195.0,3.47567326]
[1673314524340,0.23847758,17196.0,17195.0,3.21436229]
[1673314525103,0.23847758,17196.0,17195.0,4.25227387]
[1673314525353,0.23847758,17196.0,17195.0,4.55227387]
[1673314527133,1e-08,17196.0,17195.0,4.55227387]
[1673314527622,1e-08,17196.0,17195.0,4.72673901]
[1673314528225,0.3,17197.0,17196.0,0.58066967]
[1673314528419,0.3,17197.0,17196.0,1.42518786]
[1673314528663,0.3,17197.0,17196.0,3.43108883]
[1673314528907,0.3,17197.0,17196.0,3.16977786]
[1673314529397,0.3,17197.0,17196.0,2.86977786]
[1673314529693,0.303,17197.0,17196.0,4.19652683]
[1673314529924,0.303,17197.0,17196.0,3.44008883]
[1673314530192,0.303,17197.0,17196.0,3.14008883]
[1673314530446,0.3,17197.0,17196.0,2.86977786]
[1673314530749,0.303,17197.0,17196.0,3.13508883]
[1673314531018,0.303,17197.0,17196.0,3.43508883]
[1673314531276,0.303,17197.0,17196.0,5.19151883]
[1673314531535,0.303,17197.0,17196.0,6.02113535]
[1673314531791,0.303,17197.0,17196.0,5.42113535]
[1673314532319,0.303,17197.0,17196.0,5.12113535]
[1673314532805,0.303,17197.0,17196.0,5.42113535]
[1673314533630,0.33220229,17197.0,17196.0,5.42113535]
[1673314533879,0.33220229,17197.0,17196.0,5.42123584]
[1673314534699,0.303,17197.0,17196.0,5.42123584]
[1673314535706,0.33212291,17197.0,17196.0,5.42123584]
[1673314536290,0.33212291,17197.0,17196.0,5.59558354]